bitfinex/quotes_SOLUSD_20240716
["timestamp","ask_amount","ask_price","bid_price","bid_amount"]
[1721121321714,6.4441,155.18,155.14,22.5364]
[1721121322021,13.1869104,155.21,155.15,6.4452]
[1721121322237,6.7437104,155.21,155.16,6.4447]
[1721121322522,6.4437,155.19,155.14,28.9818]
[1721121322906,6.4433,155.2,155.15,6.4452]
[1721121323122,13.1866104,155.21,155.16,6.4449]
[1721121323713,13.1866104,155.21,155.14,22.5364]
[1721121323714,6.4433,155.2,155.15,6.4453]
[1721121324315,25.6233,155.2,155.15,6.4453]
[1721121325002,19.18,155.19,155.15,6.4453]
[1721121325414,6.7437104,155.21,155.18,19.18]
[1721121325610,19.18,155.26,155.2,19.18]
[1721121325813,6.4408,155.26,155.2,19.18]
[1721121326022,25.6208,155.26,155.2,19.18]
[1721121326702,19.18,155.25,155.21,6.4428]
[1721121326908,19.18,155.23,155.19,16.109]
[1721121327312,19.18,155.23,155.19,22.5523]
[1721121328224,6.442,155.24,155.19,22.5523]
[1721121328627,6.442,155.23,155.19,22.5523]
[1721121328823,6.442,155.23,155.19,16.109]
[1721121330126,6.4428,155.22,155.17,6.4444]
[1721121330533,6.4421,155.23,155.18,6.444]
[1721121330856,10.0,155.22,155.15,22.5529]
[1721121331136,6.4433,155.2,155.15,22.5529]
[1721121331326,6.4429,155.21,155.16,6.4449]
[1721121332228,6.4433,155.2,155.15,38.6657]
[1721121332431,10.0,155.2,155.11,32.3016]
[1721121332936,6.4437,155.19,155.14,12.8685]
[1721121333331,16.4433,155.2,155.14,12.8685]
[1721121333525,16.4433,155.2,155.15,6.4451]
[1721121334640,10.0,155.18,155.11,16.1842]
[1721121335634,6.445,155.16,155.11,22.6312]
[1721121335830,6.4444,155.18,155.11,17.47345246]
[1721121336029,6.4437,155.19,155.14,6.4457]
[1721121336940,6.4442,155.18,155.12,22.5618]
[1721121338946,6.4442,155.18,155.13,6.4461]
[1721121339134,6.4442,155.18,155.13,7.73516649]
[1721121339539,6.4442,155.18,155.13,6.4461]
[1721121340260,6.4442,155.18,155.13,7.73516845]
[1721121340437,10.0,155.2,155.14,6.4457]
[1721121340438,6.4438,155.19,155.14,6.4457]
[1721121340625,6.4441,155.18,155.13,6.4461]
[1721121340832,6.4446,155.17,155.12,22.5621]
[1721121341348,6.4442,155.18,155.13,6.4461]
[1721121341934,6.4445,155.17,155.12,22.5621]
[1721121343156,10.0,155.17,155.11,16.1842]
[1721121343560,6.4453,155.15,155.11,16.1842]
[1721121343736,6.4466,155.12,155.1,6.2263]
[1721121343936,10.0,155.15,155.1,6.2263]
[1721121344448,6.4463,155.13,155.1,6.2263]
[1721121345146,6.4471,155.11,155.07,15.2477]
[1721121345347,10.0,155.13,155.07,15.2477]
[1721121345554,6.4459,155.14,155.09,22.567]
[1721121345860,6.4454,155.15,155.1,7.73673536]
[1721121346361,16.445,155.16,155.11,6.447]
[1721121346661,6.4446,155.17,155.12,7.73590902]
[1721121347557,6.4446,155.17,155.12,6.4466]
[1721121347947,6.4449,155.16,155.11,22.5637]
[1721121348351,25.6249,155.16,155.11,41.7437]
[1721121348859,10.0,155.18,155.13,32.0262]
[1721121348860,35.6243,155.18,155.13,32.0262]
[1721121349034,6.4448,155.17,155.13,25.5801]
[1721121349235,19.18,155.16,155.13,6.4001]
[1721121349439,19.18,155.16,155.09,1.28922592]
[1721121349648,6.4462,155.13,155.1,19.18]
[1721121349852,19.18,155.12,155.09,6.5835]
[1721121350049,6.4471,155.11,155.09,6.5835]
[1721121350450,6.4466,155.12,155.09,6.5835]
[1721121350646,6.447,155.11,155.09,6.5835]
[1721121350860,6.4466,155.12,155.09,6.5835]
[1721121352042,6.446,155.14,155.09,6.5835]
[1721121352235,16.7441778,155.18,155.1,1.28926923]
[1721121352437,6.4441,155.18,155.13,6.4461]
[1721121354254,6.4446,155.17,155.12,6.4465]
[1721121355367,6.4446,155.17,155.13,6.4462]
[1721121357465,6.4441,155.18,155.13,6.4462]
[1721121357667,6.4445,155.17,155.11,22.5633]
[1721121358167,10.0,155.19,155.11,22.5633]
[1721121358473,6.445,155.16,155.11,22.5633]
[1721121359346,6.447,155.11,155.07,21.5648]
[1721121359565,6.4466,155.13,155.08,6.4481]
[1721121359746,16.4465,155.13,155.08,6.4482]
[1721121360146,6.4465,155.13,155.08,6.4482]
[1721121360350,10.0,155.16,155.07,21.5648]
[1721121360678,10.0,155.14,155.08,6.4482]
[1721121361091,6.4462,155.13,155.09,6.4478]
[1721121361264,6.4469,155.12,155.07,28.0131]
[1721121361466,6.4471,155.11,155.07,21.5648]
[1721121361768,15.0087,155.15,155.03,54.9429]
[1721121361974,10.0,155.16,155.08,16.1206]
[1721121362281,6.4471,155.11,155.05,22.5728]
[1721121362581,6.4471,155.11,155.06,6.449]
[1721121362786,6.4465,155.13,155.07,6.4486]
[1721121363191,6.4465,155.13,155.08,6.4482]
[1721121363580,6.4469,155.12,155.06,6.4487]
[1721121363775,6.4469,155.12,155.07,6.4485]
[1721121363979,6.4462,155.13,155.08,6.4482]
[1721121364602,6.4458,155.14,155.08,6.4482]
[1721121364965,10.0,155.14,155.07,22.5695]
[1721121365692,20.0,155.14,155.03,38.8174]
[1721121365865,20.0,155.12,155.03,38.8174]
[1721121366988,6.4475,155.1,155.05,6.4491]
[1721121367366,6.4478,155.09,155.05,6.4491]
[1721121367686,10.0,155.1,155.04,6.4498]
[1721121367874,10.0,155.09,155.0,16.129]
[1721121368075,6.2557,155.12,155.01,1.29004041]
[1721121368076,10.0,155.11,155.01,1.29004041]
[1721121368284,6.4474,155.1,155.05,6.4495]
[1721121370796,6.4479,155.09,155.04,29.162]
[1721121370976,10.0,155.08,155.04,6.5882]
[1721121371177,6.4487,155.07,155.04,6.5882]
[1721121371500,16.4486,155.08,155.04,6.5882]
[1721121371799,10.0,155.07,155.0,6.5882]
[1721121372113,10.0,155.09,155.03,16.1257]
[1721121372296,35.6479,155.09,155.04,19.2]
[1721121372488,6.4479,155.09,155.05,19.2]
[1721121372792,35.6466,155.12,155.07,25.6486]
[1721121373290,25.647,155.11,155.06,41.7716]
[1721121373900,10.0,155.14,155.07,19.2]
[1721121374073,19.2,155.12,155.07,19.2]
[1721121374680,19.2,155.12,155.03,6.4503]
[1721121374681,19.2,155.08,155.03,6.4503]
[1721121374890,19.2,155.08,155.03,25.6503]
[1721121375399,10.0,155.09,155.03,25.6503]
[1721121375572,19.2,155.08,155.03,25.6503]
[1721121375988,19.2,155.08,155.03,19.2]
[1721121376194,19.2,155.06,155.01,51.4143]
[1721121376574,19.2,155.06,155.01,38.6651]
[1721121376779,6.74881924,155.11,155.05,6.4494]
[1721121376780,6.4474,155.1,155.05,6.4494]
[1721121376986,25.6474,155.1,155.05,25.6494]
[1721121377188,16.4479,155.09,155.05,19.2]
[1721121377400,35.6479,155.09,155.04,41.7746]
[1721121377976,6.4483,155.08,155.04,35.3247]
[1721121378294,16.4479,155.09,155.04,22.5746]
[1721121378483,29.2,155.09,155.04,35.3247]
[1721121378680,6.74857008,155.12,155.05,6.6624]
[1721121378888,19.2,155.17,155.12,6.4462]
[1721121379203,10.0,155.18,155.13,6.446]
[1721121379403,25.6445,155.17,155.12,25.6465]
[1721121379587,6.444,155.19,155.13,25.2601]
[1721121379975,21.9156,155.24,155.13,25.2601]
[1721121379976,10.0,155.21,155.16,19.2]
[1721121380180,10.0,155.21,155.16,6.4446]
[1721121380181,16.4429,155.21,155.16,6.4446]
[1721121380487,19.2,155.2,155.15,19.2]
[1721121380796,35.6429,155.21,155.16,25.6449]
[1721121381302,25.6429,155.21,155.16,25.6449]
[1721121381497,16.4434,155.2,155.16,19.2]
[1721121381697,35.6434,155.2,155.15,19.2]
[1721121382282,35.6434,155.2,155.14,22.56]
[1721121382283,16.4434,155.2,155.14,22.56]
[1721121382678,10.0,155.17,155.13,6.0601]
[1721121382896,10.0,155.17,155.1,16.1179]
[1721121383196,10.0,155.17,155.12,6.4465]
[1721121383974,10.0,155.19,155.13,16.1152]
[1721121384287,61.19876252,155.23,155.13,16.1152]
[1721121384288,10.0,155.21,155.13,16.1152]
[1721121384484,16.4429,155.21,155.13,16.1152]
[1721121384807,6.4433,155.2,155.15,6.4453]
[1721121385509,10.0,155.22,155.16,16.1122]
[1721121385680,10.0,155.22,155.17,6.4445]
[1721121386213,16.4426,155.22,155.17,6.4445]
[1721121386584,6.4426,155.22,155.17,6.4445]
[1721121386783,6.74346252,155.23,155.17,6.4445]
[1721121386993,6.74346252,155.23,155.19,6.4436]
[1721121388208,268.1,155.27,155.2,6.443]
[1721121388501,16.4404,155.27,155.22,6.4424]
[1721121388710,6.4409,155.26,155.21,6.4428]
[1721121389285,6.74085503,155.29,155.22,17.39437531]
[1721121389599,6.47980048,155.3,155.25,6.4411]
[1721121389780,0.04060048,155.3,155.25,6.4411]
[1721121390907,0.04060048,155.3,155.27,6.44]
[1721121391116,0.04060048,155.3,155.25,16.103]
[1721121391402,0.04060048,155.3,155.26,6.4407]
[1721121391608,0.04060048,155.3,155.25,16.103]
[1721121391814,16.4395,155.29,155.24,6.2504]
[1721121392190,10.0,155.29,155.22,16.106]
[1721121392581,10.0,155.25,155.2,6.5755]
[1721121392783,10.0,155.27,155.21,1.28859214]
[1721121392982,10.0,155.29,155.21,17.39479214]
[1721121393183,16.4405,155.27,155.21,22.5487]
[1721121393399,10.0,155.27,155.21,22.5487]
[1721121393796,10.0,155.27,155.21,16.1062]
[1721121394287,16.442,155.23,155.18,6.4437]
[1721121394618,16.442,155.23,155.17,22.5549]
[1721121394794,6.4424,155.22,155.17,22.5549]
[1721121395313,16.442,155.23,155.17,22.5549]
[1721121395614,6.4424,155.22,155.17,16.1108]
[1721121395992,10.0,155.2,155.15,6.4453]
[1721121396194,10.0,155.22,155.14,17.40323008]
[1721121396492,10.0,155.22,155.17,6.4445]
[1721121396808,6.4429,155.21,155.16,6.4448]
[1721121396981,16.4425,155.22,155.16,6.4448]
[1721121397187,16.4425,155.22,155.17,6.4443]
[1721121397608,10.0,155.22,155.17,6.4443]
[1721121397806,10.0,155.26,155.19,6.4436]
[1721121397807,10.0,155.24,155.19,6.4436]
[1721121397995,10.0,155.22,155.16,16.1115]
[1721121398191,6.4421,155.23,155.18,6.444]
[1721121398405,16.442,155.24,155.18,6.444]
[1721121399123,6.4422,155.23,155.18,6.444]
[1721121399626,10.0,155.24,155.19,6.4435]
[1721121400827,6.4415,155.25,155.2,6.4432]
[1721121401024,16.4408,155.26,155.21,6.4428]
[1721121401722,6.4412,155.25,155.2,6.4432]
[1721121402433,10.0,155.26,155.21,6.4427]
[1721121403611,13.3997624,155.28,155.22,16.1052]
[1721121403905,6.44,155.28,155.23,6.4416]
[1721121404903,6.4395,155.29,155.24,6.4415]
[1721121406133,6.44,155.28,155.23,6.442]
[1721121406729,6.4396,155.29,155.24,6.4415]
[1721121407028,10.04060048,155.3,155.22,16.1052]
[1721121407536,10.04060048,155.3,155.23,6.442]
[1721121407735,6.4403,155.28,155.23,6.442]
[1721121408830,10.0,155.27,155.22,16.1052]
[1721121409136,6.4412,155.25,155.2,6.4432]
[1721121409430,6.4408,155.26,155.21,6.4427]
[1721121409935,6.4413,155.25,155.2,6.4432]
[1721121410343,6.4408,155.26,155.21,6.4427]
[1721121410635,6.4412,155.25,155.2,6.4432]
[1721121410822,6.4412,155.25,155.19,22.6324]
[1721121410823,16.4407,155.27,155.19,22.6324]
[1721121411023,16.4407,155.27,155.22,6.4421]
[1721121411223,6.44,155.28,155.21,17.39492973]
[1721121411532,16.4395,155.29,155.24,6.4414]
[1721121411716,6.4399,155.28,155.23,6.442]
[1721121413033,16.4407,155.27,155.22,6.4423]
[1721121413529,6.4407,155.27,155.22,6.4423]
[1721121413928,6.4412,155.25,155.21,16.1065]
[1721121414621,6.4412,155.25,155.21,22.5493]
[1721121415224,6.4408,155.26,155.21,22.5493]
[1721121415423,16.4404,155.27,155.22,6.4423]
[1721121416023,6.4408,155.26,155.21,16.1065]
[1721121416204,6.4412,155.25,155.21,16.1065]
[1721121416634,6.4408,155.26,155.21,22.5493]
[1721121416933,6.4412,155.25,155.21,22.5493]
[1721121417312,16.4407,155.27,155.21,22.5493]
[1721121417529,16.4413,155.25,155.19,6.5233]
[1721121418240,16.4413,155.25,155.21,6.4428]
[1721121419441,10.0,155.25,155.21,6.4428]
[1721121420228,6.4408,155.26,155.22,6.4423]
[1721121420537,6.4408,155.26,155.21,6.4427]
[1721121420722,10.0,155.25,155.21,6.4427]
[1721121421430,6.4408,155.26,155.21,6.4427]
[1721121422225,10.0,155.25,155.21,6.4427]
[1721121422539,10.0,155.25,155.19,22.6316]
[1721121422838,10.0,155.25,155.2,6.443]
[1721121423042,6.4412,155.25,155.2,6.443]
[1721121423218,10.0,155.27,155.19,23.92025514]
[1721121423819,10.04060048,155.3,155.2,70.5664]
[1721121424143,6.47970048,155.3,155.26,16.1019]
[1721121424344,16.47970048,155.3,155.26,16.1019]
[1721121424518,6.4396,155.29,155.22,16.1054]
[1721121424720,10.04060048,155.3,155.22,16.1054]
[1721121424721,16.44,155.28,155.22,22.5475]
[1721121425131,16.44,155.28,155.23,6.442]
[1721121426353,6.4396,155.29,155.24,6.4416]
[1721121427651,16.4404,155.27,155.22,16.1054]
[1721121428238,16.4404,155.27,155.22,22.5478]
[1721121428442,6.4408,155.26,155.19,22.6323]
[1721121429350,6.4408,155.26,155.21,6.4425]
[1721121430553,10.0,155.25,155.19,16.109]
[1721121431262,10.0,155.25,155.2,6.4432]
[1721121431836,16.4413,155.25,155.2,6.4432]
[1721121432343,35.6113,155.25,155.2,6.4432]
[1721121432754,10.0,155.23,155.19,16.109]
[1721121433077,35.6121,155.23,155.19,16.109]
[1721121434351,10.0,155.23,155.19,22.5526]
[1721121434735,10.0,155.23,155.19,16.109]
[1721121434932,10.0,155.25,155.22,6.4424]
[1721121435136,10.0,155.25,155.21,22.5491]
[1721121435537,6.73789868,155.26,155.22,6.4422]
[1721121435738,10.0,155.29,155.23,6.4418]
[1721121435739,20.0,155.29,155.23,6.4418]
[1721121435972,4.38774278,155.28,155.26,6.4407]
[1721121436147,4.38774278,155.27,155.26,6.4408]
[1721121436350,4.38774278,155.27,155.24,6.4412]
[1721121436670,6.4395,155.29,155.24,6.4412]
[1721121437055,4.38713512,155.28,155.24,6.4412]
[1721121437257,6.44,155.28,155.23,22.5463]
[1721121437449,4.38713622,155.27,155.23,22.5463]
[1721121437645,6.4395,155.29,155.24,6.4415]
[1721121437874,4.38713717,155.28,155.25,6.4412]
[1721121438175,32.31170048,155.3,155.25,6.4412]
[1721121438370,4.38699744,155.29,155.25,6.4412]
[1721121438561,4.38699744,155.28,155.23,22.5459]
[1721121438875,4.38699744,155.28,155.24,6.4413]
[1721121439245,4.38699744,155.28,155.23,16.1043]
[1721121439448,10.82699744,155.28,155.23,22.5463]
[1721121439650,6.44,155.28,155.23,22.5463]
[1721121439972,10.04060048,155.3,155.23,16.1043]
[1721121440164,10.04060048,155.3,155.25,16.102]
[1721121440360,10.82689966,155.29,155.23,6.4419]
[1721121440561,4.38699966,155.28,155.23,6.4419]
[1721121440966,4.38699966,155.28,155.24,6.4416]
[1721121441270,4.38699966,155.28,155.25,6.4411]
[1721121441475,4.38699966,155.29,155.22,22.5452]
[1721121441969,10.82659966,155.29,155.24,6.4416]
[1721121442274,4.38699966,155.28,155.24,6.4416]
[1721121443275,4.38699966,155.28,155.25,6.4411]
[1721121443462,16.47990048,155.3,155.25,6.4411]
[1721121443665,4.38696437,155.29,155.25,6.4411]
[1721121443862,4.38696437,155.28,155.26,6.4405]
[1721121444067,6.47980048,155.3,155.25,6.4411]
[1721121444258,4.38658339,155.29,155.25,6.4411]
[1721121444462,6.47980048,155.3,155.25,6.4411]
[1721121444671,4.3865688,155.29,155.25,6.4411]
[1721121444871,6.47980048,155.3,155.25,6.4411]
[1721121445067,10.82598454,155.29,155.25,6.4411]
[1721121445270,6.47970048,155.3,155.25,6.4411]
[1721121445451,4.38649802,155.29,155.26,6.4407]
[1721121445647,0.04060048,155.3,155.26,6.4407]
[1721121445871,4.38636576,155.29,155.26,6.4407]
[1721121446073,0.04060048,155.3,155.26,6.4407]
[1721121446262,4.38649802,155.29,155.26,6.4407]
[1721121446588,0.04060048,155.3,155.26,6.4407]
[1721121446757,4.38649802,155.29,155.26,6.4407]
[1721121446958,0.04060048,155.3,155.26,6.4407]
[1721121447187,4.38649767,155.29,155.26,6.4407]
[1721121447380,6.47970048,155.3,155.25,6.4411]
[1721121447761,4.38637293,155.29,155.25,6.4411]
[1721121448073,6.47970048,155.3,155.25,6.4411]
[1721121448265,4.38649989,155.29,155.25,6.4411]
[1721121448577,6.4397,155.29,155.24,16.1033]
[1721121449863,6.4397,155.29,155.24,22.5445]
[1721121450064,6.47980048,155.3,155.24,16.1033]
[1721121450272,4.38672027,155.29,155.24,16.1033]
[1721121450567,6.4395,155.29,155.25,6.4411]
[1721121452489,6.47980048,155.3,155.25,6.4411]
[1721121452676,4.38678174,155.29,155.25,6.4411]
[1721121452881,6.47980048,155.3,155.25,6.4411]
[1721121453175,6.47980048,155.3,155.26,6.4407]
[1721121453487,4.38668881,155.29,155.26,6.4407]
[1721121453688,6.47980048,155.3,155.25,6.4411]
[1721121453989,4.38658949,155.29,155.26,6.4404]
[1721121454164,0.04060048,155.3,155.26,6.4404]
[1721121454365,0.04060048,155.3,155.28,19.15]
[1721121454727,0.04060048,155.3,155.29,19.15]
[1721121455002,0.04060048,155.3,155.29,6.4395]
[1721121455162,0.04060048,155.3,155.29,25.5895]
[1721121456602,0.04060048,155.3,155.29,26.87720654]
[1721121456899,0.04060048,155.3,155.29,25.5895]
[1721121458283,0.04060048,155.3,155.29,26.87708354]
[1721121458501,0.04060048,155.3,155.29,25.5895]
[1721121458896,0.04060048,155.3,155.29,6.4395]
[1721121459073,0.04060048,155.3,155.29,25.5895]
[1721121459270,0.04060048,155.3,155.22,6.3985]
[1721121459501,0.04060048,155.3,155.27,6.44]
[1721121459673,0.04060048,155.3,155.27,19.15]
[1721121459877,0.04060048,155.3,155.28,19.15]
[1721121460292,0.04060048,155.3,155.29,19.15]
[1721121460677,0.04060048,155.3,155.28,19.15]
[1721121460981,0.04060048,155.3,155.27,22.5403]
[1721121461195,0.04060048,155.3,155.28,19.15]
[1721121461806,0.04060048,155.3,155.28,25.5897]
[1721121462305,0.04060048,155.3,155.27,16.1]
[1721121462600,6.47970048,155.3,155.27,19.15]
[1721121462977,0.04060048,155.3,155.26,35.2519]
[1721121463201,0.04060048,155.3,155.27,19.15]
[1721121464477,0.04060048,155.3,155.27,25.5902]
[1721121464889,0.04060048,155.3,155.28,25.5898]
[1721121465087,10.0,155.29,155.22,22.5038]
[1721121465298,10.0,155.29,155.26,19.15]
[1721121465889,16.4398,155.29,155.26,19.15]
[1721121466112,16.4398,155.29,155.24,6.4415]
[1721121466289,10.0,155.29,155.25,19.15]
[1721121466905,0.04060048,155.3,155.27,25.5902]
[1721121467106,0.04060048,155.3,155.28,19.15]
[1721121467278,0.04060048,155.3,155.29,25.5895]
[1721121468975,0.04060048,155.3,155.29,26.87710196]
[1721121469485,0.04060048,155.3,155.29,25.5895]
[1721121470305,0.04060048,155.3,155.29,7.72696686]
[1721121470689,0.04060048,155.3,155.29,6.4395]
[1721121471015,0.04060048,155.3,155.29,7.72697959]
[1721121471300,0.04060048,155.3,155.29,6.4395]
[1721121471995,0.04060048,155.3,155.29,7.72694007]
[1721121473204,0.04060048,155.3,155.29,6.4395]
[1721121474281,23.16642396,155.43,155.38,6.4355]
[1721121474504,23.16642396,155.43,155.35,16.0924]
[1721121474505,16.73252396,155.43,155.35,16.0924]
[1721121474714,6.4346,155.41,155.36,6.4365]
[1721121475112,6.4342,155.42,155.37,6.4362]
[1721121475614,6.4347,155.41,155.35,16.0924]
[1721121475786,10.0,155.41,155.35,16.0924]
[1721121476208,6.4353,155.4,155.35,16.0924]
[1721121476509,6.4346,155.41,155.36,6.4364]
[1721121477309,6.435,155.4,155.35,22.5294]
[1721121477893,6.435,155.4,155.36,6.4366]
[1721121478409,6.4346,155.41,155.36,6.4366]
[1721121478608,23.16662396,155.43,155.35,16.0924]
[1721121478994,16.73252396,155.43,155.37,16.0898]
[1721121479699,13.16622396,155.43,155.38,1.28702103]
[1721121479893,13.16622396,155.43,155.38,6.4354]
[1721121480111,13.16622396,155.43,155.37,16.0898]
[1721121480314,13.16622396,155.43,155.38,7.72282084]
[1721121480518,13.16632396,155.43,155.37,16.0898]
[1721121481027,6.73252396,155.43,155.37,16.0898]
[1721121481197,10.0,155.45,155.38,1.28697528]
[1721121481629,15.7866,155.46,155.37,16.0898]
[1721121481794,6.4341,155.43,155.37,22.5256]
[1721121482005,16.4342,155.42,155.37,22.5256]
[1721121482222,10.0,155.42,155.37,22.526]
[1721121482722,6.4346,155.41,155.36,6.4366]
[1721121483409,10.0,155.39,155.31,16.0966]
[1721121483633,6.4367,155.36,155.31,16.0966]
[1721121483803,16.4363,155.37,155.31,22.535]
[1721121484007,6.4363,155.37,155.32,6.4382]
[1721121484230,25.1433,155.39,155.33,6.4378]
[1721121484531,25.1433,155.39,155.34,6.4374]
[1721121484715,31.5787,155.39,155.34,6.4374]
[1721121485029,6.4359,155.38,155.33,22.5318]
[1721121485215,25.1433,155.39,155.33,16.094]
[1721121485533,16.4365,155.37,155.31,6.4383]
[1721121486733,16.4365,155.37,155.32,6.4383]
[1721121487099,16.4365,155.37,155.27,38.26]
[1721121487100,16.4382,155.33,155.27,6.4403]
[1721121487302,10.0,155.33,155.27,6.4403]
[1721121488015,16.4379,155.33,155.28,6.4398]
[1721121488824,10.0,155.33,155.29,6.4394]
[1721121489002,6.4375,155.34,155.29,6.4394]
[1721121489337,10.0,155.33,155.26,16.101]
[1721121489503,6.4384,155.32,155.26,22.5416]
[1721121489703,6.4387,155.31,155.26,22.5416]
[1721121490102,10.0,155.35,155.27,6.4403]
[1721121490432,10.0,155.35,155.28,35.2389]
[1721121490733,19.14,155.36,155.31,25.5786]
[1721121491102,16.4366,155.37,155.31,25.5786]
[1721121491302,25.1433,155.39,155.32,20.42767845]
[1721121491618,19.14,155.38,155.33,19.14]
[1721121491827,19.14,155.37,155.32,19.14]
[1721121492127,19.14,155.37,155.32,25.5781]
[1721121492304,19.14,155.37,155.32,6.4382]
[1721121492509,6.4363,155.37,155.32,19.14]
[1721121492729,25.5763,155.37,155.32,19.14]
[1721121493128,6.4363,155.37,155.32,25.5781]
[1721121493341,25.87669058,155.4,155.33,17.38214967]
[1721121493513,25.5753,155.4,155.34,19.14]
[1721121493707,6.4354,155.39,155.34,25.5774]
[1721121494135,20.01891068,155.42,155.35,26.8640216]
[1721121494332,6.4346,155.41,155.36,25.5763]
[1721121494712,6.4342,155.42,155.37,25.576]
[1721121494908,25.5742,155.42,155.37,25.576]
[1721121495103,6.4349,155.41,155.36,16.0914]
[1721121495309,6.4359,155.38,155.33,6.4378]
[1721121495532,19.14,155.38,155.34,6.4372]
[1721121495730,19.14,155.39,155.34,25.5772]
[1721121496640,25.5754,155.39,155.34,25.5774]
[1721121496843,10.0,155.43,155.35,1.2872905]
[1721121497008,4.38318097,155.42,155.35,20.42724343]
[1721121497212,6.4342,155.42,155.37,6.4358]
[1721121497514,25.5746,155.41,155.36,19.14]
[1721121497931,25.575,155.4,155.34,41.6698]
[1721121498123,25.575,155.4,155.35,19.14]
[1721121498322,25.575,155.4,155.35,25.5768]
[1721121498532,19.14,155.38,155.34,22.5302]
[1721121498725,6.4357,155.39,155.34,41.6702]
[1721121498931,10.0,155.41,155.35,25.577]
[1721121498932,25.575,155.4,155.35,25.577]
[1721121499119,6.4344,155.42,155.36,6.4364]
[1721121499323,19.14,155.41,155.36,25.5764]
[1721121499754,19.14,155.41,155.36,19.14]
[1721121499942,20.0,155.45,155.36,19.14]
[1721121500234,25.5745,155.42,155.37,6.4362]
[1721121500412,6.4345,155.42,155.37,6.4362]
[1721121500612,25.5745,155.42,155.37,6.4362]
[1721121501416,6.4336,155.44,155.38,19.14]
[1721121501722,4.38207352,155.43,155.37,16.0904]
[1721121501930,19.14,155.43,155.38,19.14]
[1721121502642,25.5742,155.42,155.37,41.6666]
[1721121502828,25.5742,155.42,155.37,22.5266]
[1721121503139,19.14,155.41,155.37,22.5266]
[1721121503550,25.5746,155.41,155.37,16.0904]
[1721121503848,19.14,155.4,155.37,16.0904]
[1721121504341,29.14,155.38,155.33,16.0938]
[1721121504540,19.14,155.37,155.33,22.5313]
[1721121504726,6.4355,155.39,155.34,6.4373]
[1721121504934,19.14,155.38,155.34,6.4373]
[1721121505835,25.5759,155.38,155.33,41.6714]
[1721121506149,19.14,155.38,155.33,35.2338]
[1721121506643,19.14,155.38,155.34,6.4374]
[1721121506947,25.5759,155.38,155.33,16.0938]
[1721121507258,19.14,155.37,155.33,22.5315]
[1721121507830,6.4359,155.38,155.34,6.4374]
[1721121508031,19.14,155.37,155.34,6.4374]
[1721121508461,19.14,155.37,155.35,6.4369]
[1721121508631,6.4352,155.4,155.35,6.4369]
[1721121508948,25.5754,155.39,155.34,25.5774]
[1721121509161,19.14,155.38,155.34,6.4374]
[1721121509647,19.14,155.39,155.35,6.437]
[1721121509831,6.435,155.4,155.35,6.437]
[1721121510038,19.14,155.39,155.35,6.437]
[1721121510231,19.14,155.39,155.34,19.14]
[1721121510666,19.14,155.39,155.35,6.437]
[1721121510848,6.4358,155.38,155.33,22.5316]
[1721121511052,6.73491968,155.41,155.31,22.8026]
[1721121511053,6.73491968,155.41,155.35,16.0919]
[1721121511255,25.5746,155.41,155.36,26.86341462]
[1721121511556,6.4346,155.41,155.36,26.86341462]
[1721121511866,6.4351,155.4,155.36,19.14]